bitfinex-derivatives/quotes_SOLF0:USTF0_20250929
["timestamp","ask_amount","ask_price","bid_price","bid_amount"]
[1759183829643,8.0,213.59,213.51,2.27445898]
[1759183829843,8.0,213.59,213.52,0.58]
[1759183830649,8.0,213.6,213.54,4.2117]
[1759183831646,8.0,213.6,213.5,4.2127]
[1759183831848,5.90515898,213.61,213.41,65.5593]
[1759183831849,8.0,213.57,213.49,0.58]
[1759183832552,8.0,213.57,213.49,66.1137]
[1759183833655,8.0,213.57,213.53,4.2119]
[1759183834551,1.69445898,213.61,213.48,1.69445898]
[1759183834552,8.0,213.59,213.48,0.58]
[1759183834852,9.69445898,213.59,213.48,2.27445898]
[1759183835044,8.0,213.58,213.48,2.27445898]
[1759183835248,8.0,213.58,213.51,4.2123]
[1759183838357,9.69445898,213.56,213.49,4.2129]
[1759183841652,65.5006,213.61,213.46,4.2133]
[1759183841856,8.0,213.52,213.46,4.2133]
[1759183842457,1.69445898,213.5,213.41,0.58]
[1759183842658,8.0,213.49,213.41,0.58]
[1759183842961,8.0,213.49,213.43,4.2141]
[1759183843352,8.0,213.47,213.41,0.58]
[1759183843559,8.0,213.47,213.38,2.27445898]
[1759183843756,8.0,213.47,213.41,4.2144]
[1759183843956,8.0,213.44,213.36,13.78255342]
[1759183844759,8.0,213.44,213.34,0.58]
[1759183845263,9.69445898,213.45,213.39,4.2148]
[1759183847263,9.69445898,213.45,213.37,4.2152]
[1759183847961,13.90825898,213.45,213.37,4.2152]
[1759183849162,9.69445898,213.45,213.35,65.5771]
[1759183850256,8.0,213.44,213.35,65.5771]
[1759183850565,1.69445898,213.45,213.39,4.2147]
[1759183850759,8.0,213.44,213.34,66.1594]
[1759183850965,8.0,213.44,213.34,0.58]
[1759183851168,8.0,213.44,213.37,4.2152]
[1759183851656,1.69445898,213.42,213.34,0.58]
[1759183851860,8.0,213.41,213.34,0.58]
[1759183852458,65.5351,213.49,213.27,0.58]
[1759183852459,8.0,213.38,213.27,0.58]
[1759183852762,8.0,213.38,213.3,0.58]
[1759183852960,8.0,213.38,213.33,4.216]
[1759183853161,8.0,213.4,213.33,4.216]
[1759183853769,8.0,213.4,213.34,4.2157]
[1759183854064,8.0,213.4,213.31,65.5892]
[1759183855667,8.0,213.4,213.32,66.1767]
[1759183856170,8.0,213.4,213.32,67.87115898]
[1759183856669,8.0,213.4,213.36,4.2153]
[1759183857869,8.0,213.4,213.36,4.8053]
[1759183858369,8.0,213.4,213.37,4.2151]
[1759183858865,7.25,213.44,213.37,0.59]
[1759183859464,7.25,213.44,213.38,4.2149]
[1759183860264,7.25,213.46,213.37,0.59]
[1759183860467,7.25,213.46,213.38,1.69445898]
[1759183860767,7.25,213.46,213.39,0.59]
[1759183861364,7.25,213.46,213.42,4.8041]
[1759183861563,26.38,213.54,213.42,4.8041]
[1759183861564,8.94445898,213.51,213.42,4.2141]
[1759183861869,7.25,213.49,213.42,4.2141]
[1759183862071,3.30351222,213.48,213.42,4.2141]
[1759183862465,7.25,213.47,213.42,4.2141]
[1759183862667,7.25,213.5,213.42,4.2141]
[1759183862871,7.25,213.48,213.42,4.2141]
[1759183863369,7.25,213.46,213.42,4.2141]
[1759183863566,7.25,213.5,213.42,4.2141]
[1759183863871,7.25,213.48,213.4,4.2146]
[1759183864059,3.30864891,213.47,213.4,4.2146]
[1759183864467,3.30864891,213.47,213.41,4.2143]
[1759183864966,3.30864891,213.47,213.39,0.59]
[1759183865669,7.25,213.46,213.42,4.2141]
[1759183866166,1.69445898,213.5,213.42,4.2141]
[1759183866369,10.5615188,213.49,213.42,4.2141]
[1759183866568,3.3115188,213.48,213.42,4.2141]
[1759183866770,3.3115188,213.47,213.42,4.2141]
[1759183866961,7.25,213.48,213.42,4.2141]
[1759183867164,7.25,213.46,213.42,4.2141]
[1759183867363,7.25,213.49,213.42,4.2141]
[1759183867569,3.31281119,213.48,213.42,4.2141]
[1759183867769,7.25,213.46,213.42,4.2141]
[1759183867965,7.25,213.49,213.42,4.2141]
[1759183868164,3.31287082,213.48,213.42,4.2141]
[1759183868365,7.25,213.46,213.42,4.2141]
[1759183868570,7.25,213.49,213.42,4.2141]
[1759183868766,3.3140336,213.48,213.42,4.2141]
[1759183868964,5.90725898,213.5,213.42,4.8041]
[1759183868965,7.25,213.46,213.42,4.8041]
[1759183869165,5.90725898,213.5,213.42,4.8041]
[1759183869365,10.56516238,213.49,213.42,4.8041]
[1759183869568,3.31516238,213.48,213.42,4.8041]
[1759183869767,7.25,213.46,213.42,4.8041]
[1759183869972,7.25,213.49,213.42,4.8041]
[1759183870170,3.31528388,213.48,213.42,4.8041]
[1759183870366,7.25,213.46,213.42,4.8041]
[1759183870671,7.25,213.49,213.42,4.8041]
[1759183870868,5.01097513,213.48,213.42,4.8041]
[1759183871063,7.25,213.46,213.42,4.8041]
[1759183871272,1.69445898,213.48,213.42,4.8041]
[1759183871479,3.31727927,213.47,213.42,4.8041]
[1759183871771,7.25,213.45,213.42,4.8041]
[1759183872170,7.25,213.47,213.37,1.69445898]
[1759183872371,7.25,213.45,213.36,0.59]
[1759183872580,7.25,213.43,213.36,0.59]
[1759183873577,3.31824645,213.42,213.31,116.18]
[1759183873768,3.31824645,213.45,213.31,116.18]
[1759183873968,3.31824645,213.44,213.31,116.18]
[1759183874169,7.25,213.42,213.31,116.18]
[1759183874373,7.25,213.42,213.32,0.59]
[1759183874581,11.4645,213.42,213.34,4.2158]
[1759183874781,3.31903704,213.41,213.34,4.2158]
[1759183875278,7.43,213.4,213.34,4.2158]
[1759183875478,10.74903704,213.4,213.34,4.2158]
[1759183875781,7.43,213.38,213.34,4.8158]
[1759183878484,7.43,213.38,213.35,0.6]
[1759183880091,7.43,213.41,213.34,4.2158]
[1759183880285,3.32259067,213.4,213.34,4.2158]
[1759183881889,3.32259067,213.4,213.35,4.2155]
[1759183882090,7.43,213.43,213.34,0.6]
[1759183882290,3.32472406,213.42,213.34,0.6]
[1759183882788,7.43,213.41,213.37,4.2151]
[1759183882994,7.43,213.41,213.38,0.6]
[1759183883292,7.43,213.4,213.3,0.6]
[1759183883497,7.43,213.4,213.32,0.6]
[1759183884089,7.43,213.4,213.32,116.78]
[1759183884392,7.67,213.41,213.32,0.6]
[1759183884598,7.67,213.41,213.3,116.18]
[1759183884599,3.3282279,213.4,213.3,116.18]
[1759183884897,7.67,213.38,213.3,116.18]
[1759183885095,7.67,213.38,213.33,4.2159]
[1759183885391,70.76054794,213.46,213.3,116.18]
[1759183885392,2.65566061,213.45,213.32,0.63]
[1759183885597,7.67,213.43,213.32,0.63]
[1759183885793,7.67,213.41,213.34,0.63]
[1759183886899,65.5448,213.46,213.3,0.63]
[1759183887101,7.67,213.42,213.3,0.63]
[1759183887300,3.33292639,213.41,213.3,0.63]
[1759183887502,11.00292639,213.4,213.3,0.63]
[1759183887700,3.33292639,213.39,213.3,0.63]
[1759183888001,3.33292639,213.38,213.3,0.63]
[1759183888201,7.67,213.4,213.3,0.63]
[1759183888405,3.33541356,213.39,213.3,0.63]
[1759183888599,11.00541356,213.38,213.34,0.63]
[1759183888804,7.67,213.42,213.34,116.81]
[1759183888999,3.33563495,213.41,213.34,116.81]
[1759183889196,3.33563495,213.4,213.34,116.81]
[1759183889403,7.86950855,213.47,213.36,4.2154]
[1759183889404,11.00563495,213.39,213.36,4.2154]
[1759183889607,7.67,213.39,213.36,4.2154]
[1759183889800,4.2144,213.42,213.36,4.2154]
[1759183890105,11.00606871,213.41,213.34,116.81]
[1759183890307,3.33606871,213.4,213.34,0.63]
[1759183890597,3.33606871,213.39,213.33,120.396]
[1759183890803,3.33606871,213.38,213.33,120.396]
[1759183890996,7.67,213.4,213.33,120.396]
[1759183891197,7.67,213.38,213.34,4.8457]
[1759183892205,7.67,213.38,213.34,0.63]
[1759183892707,6.86976061,213.43,213.36,4.2154]
[1759183892903,11.00689152,213.42,213.36,4.2154]
[1759183893104,3.33689152,213.41,213.33,116.18]
[1759183893407,3.33689152,213.4,213.38,4.845]
[1759183893601,7.67,213.44,213.38,4.845]
[1759183893797,7.67,213.42,213.38,4.845]
[1759183894003,11.00725936,213.41,213.38,4.845]
[1759183894307,11.00725936,213.4,213.37,116.18]
[1759183894504,7.67,213.4,213.37,116.18]
[1759183894904,7.67,213.4,213.38,4.2149]
[1759183895104,7.67,213.45,213.38,4.2149]
[1759183895308,3.33737311,213.44,213.38,4.2149]
[1759183895504,7.67,213.42,213.38,4.2149]
[1759183895705,3.33737311,213.41,213.38,4.2149]
[1759183896009,3.33737311,213.4,213.38,4.2149]
[1759183896308,7.67,213.42,213.38,4.8449]
[1759183896509,3.33716987,213.41,213.38,4.8449]
[1759183896704,7.67,213.42,213.38,4.8449]
[1759183896903,3.33680263,213.41,213.38,4.8449]
[1759183897103,7.67,213.42,213.38,4.8449]
[1759183897301,11.00680263,213.41,213.38,4.8449]
[1759183897511,7.67,213.41,213.38,4.8449]
[1759183897710,7.67,213.41,213.39,4.2148]
[1759183898411,7.67,213.47,213.39,0.63]
[1759183898610,3.33740571,213.46,213.39,0.63]
[1759183898813,3.33740571,213.45,213.39,0.63]
[1759183899012,7.67,213.47,213.39,0.63]
[1759183899212,3.33792614,213.46,213.39,0.63]
[1759183899409,3.33792614,213.45,213.39,0.63]
[1759183899613,7.67,213.47,213.43,4.2139]
[1759183899812,3.33833363,213.46,213.43,4.2139]
[1759183900014,3.33833363,213.45,213.43,4.2139]
[1759183900212,7.67,213.5,213.43,4.2139]
[1759183900414,3.33816518,213.49,213.43,4.2139]
[1759183900710,3.33816518,213.48,213.42,116.18]
[1759183900905,3.33816518,213.47,213.42,116.18]
[1759183901105,3.33816518,213.46,213.42,116.18]
[1759183901416,7.67,213.5,213.42,116.81]
[1759183901617,3.33785476,213.49,213.45,4.2136]
[1759183901816,3.33785476,213.48,213.45,4.8436]
[1759183902017,3.33785476,213.47,213.45,4.8436]
[1759183902218,7.67,213.52,213.45,4.8436]
[1759183902417,3.33742678,213.51,213.46,4.2133]
[1759183902613,3.33742678,213.5,213.46,0.63]
[1759183902813,3.33742678,213.49,213.46,0.63]
[1759183903017,3.33742678,213.48,213.46,0.63]
[1759183903313,7.67,213.52,213.46,0.63]
[1759183903518,3.33689765,213.51,213.46,0.63]
[1759183903711,7.67,213.49,213.46,0.63]
[1759183903911,3.33689765,213.48,213.46,0.63]
[1759183904117,7.67,213.49,213.46,0.63]
[1759183904719,7.67,213.49,213.46,4.8433]
[1759183905819,3.33580144,213.48,213.46,4.8433]
[1759183906013,7.67,213.49,213.46,4.8433]
[1759183909119,7.67,213.49,213.46,0.63]
[1759183909319,12.88384794,213.56,213.46,116.14]
[1759183909521,3.33390226,213.55,213.46,116.14]
[1759183909719,3.33390226,213.54,213.46,116.14]
[1759183909916,7.67,213.52,213.46,116.14]
[1759183910119,5.21384794,213.56,213.46,116.14]
[1759183910120,3.33390226,213.51,213.46,116.14]
[1759183910314,11.00390226,213.5,213.4,0.63]
[1759183910516,3.33390226,213.49,213.39,89.7]
[1759183910814,3.33390226,213.48,213.4,116.14]
[1759183911019,3.33390226,213.47,213.4,116.14]
[1759183911221,7.67,213.45,213.4,116.14]
[1759183911416,3.33292528,213.44,213.37,0.63]
[1759183911620,7.67,213.46,213.4,4.2146]
[1759183911921,7.67,213.44,213.4,4.2146]
[1759183912124,7.67,213.46,213.38,4.2151]
[1759183912330,7.67,213.44,213.33,0.63]
[1759183912624,7.67,213.42,213.34,116.14]
[1759183912826,3.33324519,213.41,213.34,116.14]
[1759183914625,7.58,213.4,213.36,4.2153]
[1759183914826,4.2139,213.44,213.34,116.14]
[1759183915125,7.58,213.42,213.33,0.63]
[1759183915322,3.33323704,213.41,213.34,116.14]
[1759183915624,3.33323704,213.41,213.33,0.63]
[1759183915826,3.33323704,213.41,213.34,116.14]
[1759183916626,3.33323704,213.41,213.35,4.2155]
[1759183916827,3.33323704,213.41,213.34,116.14]
[1759183917128,7.58,213.42,213.35,0.6]
[1759183917520,7.58,213.47,213.38,4.2149]
[1759183917723,7.58,213.45,213.38,4.2149]
[1759183918026,3.3316531,213.44,213.38,4.2149]
[1759183918231,10.9116531,213.43,213.38,4.8149]
[1759183918530,7.58,213.47,213.38,4.8149]
[1759183918721,3.33152713,213.46,213.38,4.8149]
[1759183918924,10.91152713,213.45,213.38,4.8149]
[1759183919124,3.33152713,213.44,213.38,4.8149]
[1759183919428,7.58,213.42,213.38,4.8149]
[1759183921829,7.58,213.47,213.36,0.6]
[1759183922023,7.58,213.45,213.36,0.6]
[1759183922323,3.33106674,213.44,213.36,0.6]
[1759183922728,7.58,213.43,213.4,4.2145]
[1759183924227,2.65566061,213.5,213.41,4.2143]
[1759183924228,7.58,213.47,213.41,4.2143]
[1759183924523,7.58,213.5,213.43,0.6]
[1759183924728,3.33159045,213.49,213.43,0.6]
[1759183925330,3.33159045,213.49,213.47,4.2132]
[1759183925630,7.58,213.5,213.47,4.8132]
[1759183928332,7.58,213.5,213.48,4.2129]
[1759183932332,324.26494794,213.59,213.46,116.12]
[1759183932632,7.58,213.57,213.48,3.25566061]
[1759183932833,7.58,213.55,213.48,3.25566061]
[1759183933035,3.32921026,213.54,213.48,3.25566061]
[1759183933740,7.58,213.53,213.51,4.2124]
[1759183934136,7.58,213.53,213.49,4.2129]
[1759183934332,7.58,213.53,213.5,1.69759377]
[1759183935433,7.57,213.51,213.48,117.77759377]
[1759183935636,7.57,213.57,213.48,117.77759377]
[1759183935937,3.32853871,213.56,213.48,117.77759377]
[1759183936140,7.57,213.54,213.48,117.77759377]
[1759183936331,3.32853871,213.53,213.49,0.58]
[1759183936532,3.32853871,213.52,213.49,0.58]
[1759183937636,3.32853871,213.52,213.5,4.2125]
[1759183938042,3.32853871,213.52,213.49,0.58]
[1759183938043,7.57,213.6,213.51,1.69759377]
[1759183938339,7.57,213.58,213.51,1.69759377]
[1759183938539,3.32966873,213.57,213.51,1.69759377]
[1759183938734,1.69759377,213.61,213.53,4.212]
[1759183938735,3.32966873,213.56,213.53,4.212]
[1759183939037,3.32966873,213.55,213.53,4.212]
[1759183939640,3.32966873,213.56,213.54,5.90939377]
[1759183939840,3.32966873,213.55,213.54,5.90939377]
[1759183940140,3.32966873,213.56,213.54,5.90939377]
[1759183940334,7.57,213.57,213.54,5.90939377]
[1759183940335,3.32966873,213.55,213.54,5.90939377]
[1759183940534,3.32966873,213.56,213.54,5.90939377]
[1759183940738,3.32966873,213.55,213.54,5.90939377]
[1759183940940,10.89966873,213.56,213.54,5.90939377]
[1759183941135,3.32966873,213.55,213.54,5.90939377]
[1759183941540,10.89966873,213.55,213.54,5.90939377]
[1759183941840,7.57,213.55,213.54,4.2118]
[1759183943641,7.57,213.6,213.54,4.2118]
[1759183943843,7.57,213.58,213.54,4.2118]
[1759183944042,4.2107,213.61,213.54,4.2118]
[1759183944242,10.89821614,213.6,213.54,4.2118]
[1759183944436,7.95,213.58,213.54,4.2118]
[1759183944632,7.95,213.6,213.54,4.2118]
[1759183944831,3.32739127,213.59,213.54,4.2118]
[1759183945032,3.32739127,213.6,213.54,4.2118]
[1759183945242,7.95,213.59,213.54,4.2118]
[1759183945444,7.95,213.57,213.54,4.2118]
[1759183946946,7.95,213.57,213.54,5.90939377]
[1759183947543,7.95,213.6,213.54,5.90939377]
[1759183947740,7.95,213.58,213.54,5.90939377]
[1759183947939,7.95,213.6,213.54,5.90939377]
[1759183948140,3.32938687,213.59,213.54,5.90939377]
[1759183948344,7.95,213.6,213.54,5.90939377]
[1759183948644,7.95,213.58,213.54,5.90939377]
[1759183948947,7.95,213.6,213.54,5.90939377]
[1759183949140,3.32875977,213.59,213.54,5.90939377]
[1759183949346,7.95,213.6,213.54,6.49939377]
[1759183949547,7.95,213.58,213.54,6.49939377]
[1759183949743,7.95,213.6,213.54,6.49939377]
[1759183949943,3.32817688,213.59,213.54,6.49939377]
[1759183950144,7.95,213.6,213.54,6.49939377]
[1759183950346,3.32817688,213.59,213.54,6.49939377]
[1759183950544,7.95,213.6,213.54,6.49939377]
[1759183950844,3.32817688,213.59,213.54,6.49939377]
[1759183951044,7.95,213.6,213.54,6.49939377]
[1759183951244,3.32817688,213.59,213.54,6.49939377]
[1759183951445,7.95,213.6,213.54,6.49939377]
[1759183951648,3.32817688,213.59,213.54,6.49939377]
[1759183951939,7.95,213.6,213.54,6.49939377]
[1759183952145,3.32817688,213.59,213.54,6.49939377]
[1759183952346,7.95,213.6,213.54,6.49939377]
[1759183953138,7.95,213.6,213.54,4.8018]
[1759183953447,3.3261664,213.59,213.54,6.49939377]
[1759183953748,7.95,213.6,213.54,6.49939377]
[1759183953948,7.95,213.58,213.54,6.49939377]
[1759183954147,7.95,213.6,213.54,6.49939377]
[1759183954339,3.32580795,213.59,213.54,6.49939377]
[1759183954542,4.2107,213.61,213.54,6.49939377]
[1759183954543,7.95,213.6,213.54,6.49939377]
[1759183954743,7.95,213.58,213.54,6.49939377]
[1759183955045,65.517,213.55,213.41,1.69759377]
[1759183955246,7.95,213.52,213.41,1.69759377]
[1759183955550,7.95,213.49,213.41,1.69759377]
[1759183955747,1.69759377,213.44,213.37,33.39]
[1759183956051,7.95,213.43,213.39,4.8048]
[1759183957449,7.95,213.43,213.37,4.2153]
[1759183957647,1.69759377,213.44,213.38,116.12]
[1759183957949,9.64759377,213.44,213.38,120.3349]
[1759183958549,9.64759377,213.44,213.38,4.2149]
[1759183958951,7.95,213.44,213.3,65.593]
[1759183959154,4.2139,213.45,213.31,116.06]
[1759183959155,1.69759377,213.41,213.31,116.06]
[1759183959453,1.69759377,213.41,213.32,0.59]
[1759183959653,7.95,213.42,213.32,0.59]
[1759183959949,9.64759377,213.42,213.32,0.59]
[1759183960152,9.64759377,213.42,213.32,14.69552633]
[1759183960348,9.64759377,213.42,213.32,0.59]
[1759183960652,9.64759377,213.42,213.35,4.2155]
[1759183961853,7.95,213.52,213.37,0.59]
[1759183962049,3.32539333,213.51,213.37,116.71]
[1759183962250,7.95,213.47,213.37,116.71]
[1759183963049,7.95,213.47,213.4,4.2147]
[1759183970166,7.95,213.47,213.41,4.2143]
[1759183970357,7.95,213.47,213.39,1.69759377]
[1759183970562,7.95,213.47,213.4,0.59]
[1759183970865,7.95,213.5,213.43,0.59]
[1759183971664,1.69759377,213.51,213.46,4.2134]
[1759183972066,7.95,213.5,213.46,4.2134]
[1759183972469,1.69759377,213.51,213.46,4.2134]
[1759183972969,7.95,213.5,213.46,4.2134]
[1759183974167,7.95,213.5,213.46,4.8034]
[1759183974368,7.39,213.5,213.46,4.8034]
[1759183974672,1.69759377,213.51,213.46,4.8034]
[1759183974872,7.39,213.5,213.46,4.8034]
[1759183975373,1.69759377,213.51,213.46,4.8034]
[1759183976070,7.39,213.5,213.46,4.8034]
[1759183976270,1.69759377,213.51,213.46,4.8034]
[1759183976665,7.39,213.5,213.46,4.8034]
[1759183977065,7.39,213.5,213.47,4.2132]
[1759183977272,7.39,213.53,213.45,0.59]
[1759183978665,7.39,213.53,213.44,181.5893]
[1759183978666,7.39,213.53,213.49,4.2128]
[1759183978873,7.39,213.53,213.49,4.8028]
[1759183979373,7.39,213.53,213.5,4.2126]
[1759183980477,1.69759377,213.56,213.5,4.2126]
[1759183980870,7.39,213.55,213.5,4.2126]
[1759183981374,1.69759377,213.56,213.5,4.2126]
[1759183981670,7.39,213.55,213.5,4.2126]
[1759183981874,1.69759377,213.56,213.5,4.2126]
[1759183982774,7.39,213.55,213.5,4.2126]
[1759183983478,7.39,213.55,213.51,4.2124]
[1759183983777,1.69759377,213.56,213.51,4.2124]
[1759183983976,7.39,213.56,213.5,0.59]
[1759183984176,3.3301791,213.55,213.49,0.59]
[1759183984376,3.3301791,213.56,213.49,0.59]
[1759183984875,3.3301791,213.56,213.51,4.2125]
[1759183985373,7.39,213.57,213.51,4.2125]
[1759183985579,3.3301791,213.56,213.51,4.2125]
[1759183985876,1.69759377,213.57,213.51,4.2125]
[1759183986072,7.39,213.56,213.51,4.2125]
[1759183986379,1.69759377,213.57,213.52,4.2122]
[1759183986779,7.39,213.56,213.52,4.2122]
[1759183987182,1.69759377,213.57,213.52,4.2122]
[1759183988185,1.69759377,213.57,213.52,4.8022]
[1759183988387,7.39,213.56,213.52,4.8022]
[1759183988686,1.69759377,213.57,213.52,4.8022]
[1759183989283,7.39,213.56,213.52,4.8022]
[1759183989688,1.69759377,213.57,213.52,4.8022]
[1759183990283,7.39,213.56,213.52,4.8022]
[1759183990587,1.69759377,213.57,213.52,4.8022]
[1759183990789,7.39,213.56,213.52,4.8022]
[1759183991089,1.69759377,213.57,213.52,4.8022]
[1759183991490,7.39,213.56,213.52,4.8022]
[1759183991690,1.69759377,213.57,213.52,4.8022]
[1759183991889,1.69759377,213.57,213.53,4.212]
[1759183992089,7.39,213.56,213.53,4.802]
[1759183992492,1.69759377,213.57,213.53,4.802]
[1759183992989,5.02980727,213.57,213.53,4.802]
[1759183993295,7.39,213.56,213.53,4.802]
[1759183993490,1.69759377,213.57,213.53,4.802]
[1759183993894,7.39,213.56,213.53,4.802]
[1759183994296,7.44,213.58,213.53,4.802]
[1759183994590,7.44,213.56,213.5,4.2125]
[1759183994795,7.44,213.54,213.45,0.59]
[1759183994996,5.98480873,213.53,213.42,116.57]
[1759183995196,7.44,213.52,213.42,0.59]
[1759183995391,3.33213514,213.51,213.42,0.59]
[1759183995591,7.44,213.5,213.43,0.59]
[1759183995795,7.44,213.5,213.42,0.59]
[1759183996595,7.44,213.5,213.47,4.2132]
[1759183996898,7.44,213.54,213.44,0.59]
[1759183997097,3.33296143,213.53,213.44,0.59]
[1759183997692,3.33296143,213.53,213.49,0.59]
[1759183997889,7.44,213.52,213.49,0.59]
[1759183998092,147.58841205,213.68,213.52,4.2122]
[1759183998093,7.44,213.6,213.52,4.2122]
[1759183998291,7.44,213.58,213.52,4.2122]
[1759183998490,3.33441479,213.57,213.52,4.2122]
[1759183998694,4.2109,213.6,213.5,0.59]
[1759183998695,7.44,213.55,213.53,4.212]
[1759184002002,28.5,213.61,213.52,3.24267359]
[1759184002003,7.44,213.61,213.52,3.24267359]
[1759184002204,3.33480382,213.6,213.52,3.24267359]
[1759184003805,7.44,213.59,213.56,4.2114]
[1759184004007,7.44,213.61,213.56,4.2114]
[1759184004306,7.56,213.59,213.56,4.2114]
[1759184004601,7.56,213.61,213.56,4.2114]
[1759184004807,7.56,213.59,213.56,4.2114]
[1759184005309,7.56,213.61,213.57,4.7712]
[1759184005499,1.63945452,213.62,213.57,4.7712]
[1759184005701,7.56,213.61,213.57,4.7712]
[1759184005897,7.56,213.61,213.57,4.2112]
[1759184006105,1.63945452,213.62,213.57,4.2112]
[1759184006303,7.56,213.6,213.57,4.2112]
[1759184008205,7.56,213.61,213.55,4.2117]
[1759184008410,7.56,213.61,213.54,14.91349816]
[1759184009810,1.63945452,213.62,213.56,4.2114]
[1759184010010,7.56,213.61,213.56,4.2114]
[1759184010204,1.63945452,213.62,213.56,4.2114]
[1759184010405,7.56,213.6,213.56,4.2114]
[1759184010706,1.63945452,213.62,213.56,4.2114]
[1759184010905,7.56,213.6,213.56,4.2114]
[1759184011108,1.63945452,213.62,213.56,4.2114]
[1759184011308,7.56,213.6,213.57,4.2112]
[1759184011510,7.56,213.61,213.53,65.5218]
[1759184011714,7.56,213.61,213.55,0.56]
[1759184012609,4.2099,213.65,213.55,0.56]
[1759184012810,10.88798274,213.64,213.55,0.56]
[1759184013006,3.32798274,213.63,213.55,0.56]
[1759184013311,7.56,213.61,213.57,4.2112]
[1759184013514,7.56,213.64,213.57,4.2112]
[1759184013714,3.32788392,213.63,213.57,4.2112]
[1759184014008,7.56,213.61,213.57,4.2112]
[1759184014214,7.56,213.64,213.57,4.2112]
[1759184014416,7.56,213.62,213.57,4.2112]
[1759184014608,7.56,213.6,213.57,4.2112]
[1759184015123,7.56,213.64,213.58,4.771]
[1759184015311,3.32850014,213.63,213.55,0.56]
[1759184015614,3.32850014,213.63,213.56,0.56]
[1759184016516,3.32850014,213.63,213.61,4.2104]
[1759184016816,10.88850014,213.63,213.61,4.2104]
[1759184017116,7.56,213.66,213.61,4.2104]
[1759184017413,7.56,213.64,213.58,0.56]
[1759184017716,7.56,213.66,213.58,0.56]
[1759184017917,3.3266124,213.65,213.58,0.56]
[1759184018117,10.8866124,213.64,213.58,0.56]
[1759184018317,7.56,213.64,213.58,0.56]
[1759184018714,7.56,213.66,213.6,4.2106]
[1759184018915,7.56,213.64,213.6,4.2106]
[1759184019112,7.56,213.66,213.6,4.2106]
[1759184019415,3.32705241,213.65,213.6,4.2106]
[1759184019610,7.56,213.63,213.6,4.7706]
[1759184019815,7.56,213.63,213.61,4.2104]
[1759184021221,7.56,213.67,213.61,4.2104]
[1759184021417,7.56,213.65,213.61,4.2104]
[1759184021721,7.56,213.63,213.61,4.2104]
[1759184021911,7.56,213.67,213.61,4.2104]
[1759184022116,3.32662533,213.66,213.61,4.2104]
[1759184022416,7.56,213.64,213.61,4.2104]
[1759184022619,7.56,213.67,213.61,4.2104]
[1759184022818,7.56,213.65,213.61,4.2104]
[1759184023015,7.56,213.63,213.61,4.2104]
[1759184023221,7.56,213.67,213.61,4.2104]
[1759184023421,3.32652092,213.66,213.61,4.2104]
[1759184023720,7.56,213.64,213.61,4.2104]
[1759184023920,7.56,213.67,213.61,4.2104]
[1759184024121,10.88651327,213.66,213.62,4.7702]
[1759184024321,7.56,213.64,213.56,0.56]
[1759184024519,7.56,213.64,213.56,116.44]
[1759184024719,7.56,213.67,213.59,4.2108]
[1759184024921,7.56,213.65,213.59,4.2108]